fUST/lending_fUST_20250618
["ID","MTS","AMOUNT","RATE_DAILY","PERIOD"]
[366380514,1750223443731,-554.74404832,0.00022027,6]
[366380516,1750223443741,-460.0,0.00022027,6]
[366380518,1750223443750,-460.0,0.00022027,6]
[366380520,1750223443760,-460.0,0.00022027,6]
[366380522,1750223443769,-460.0,0.00022027,6]
[366380524,1750223443779,-410.0,0.00022027,6]
[366380526,1750223443788,-460.0,0.00022027,6]
[366380528,1750223443798,-467.97156675,0.00022027,6]
[366380531,1750223443818,-460.0,0.00022027,6]
[366380533,1750223443828,-825.78,0.00022027,6]
[366380535,1750223443838,-460.0,0.00022027,6]
[366380537,1750223443848,-460.0,0.00022027,6]
[366380539,1750223443858,-545.54712852,0.00022027,6]
[366380541,1750223443869,-410.80705133,0.00022027,6]
[366380543,1750223443879,-460.0,0.00022027,6]
[366380545,1750223443889,-460.0,0.00022027,6]
[366380548,1750223443899,-460.0,0.00022027,6]
[366380550,1750223443909,-857.72,0.00022027,6]
[366380552,1750223443920,-460.0,0.00022027,6]
[366380554,1750223443930,-460.0,0.00022027,6]
[366380556,1750223443940,-460.0,0.00022027,6]
[366380558,1750223443950,-460.0,0.00022027,6]
[366380560,1750223443960,-1291.82,0.00022027,6]
[366380562,1750223443970,-460.0,0.00022027,6]
[366380564,1750223443981,-460.0,0.00022027,6]
[366380566,1750223443991,-460.0,0.00022027,6]
[366380568,1750223444001,-460.0,0.00022027,6]
[366380570,1750223444011,-460.0,0.00022027,6]
[366380572,1750223444020,-457.2290239,0.00022027,6]
[366380574,1750223444031,-460.0,0.00022027,6]
[366380576,1750223444041,-460.0,0.00022027,6]
[366380578,1750223444051,-460.0,0.00022027,6]
[366380580,1750223444061,-460.0,0.00022027,6]
[366380582,1750223444071,-543.03318531,0.00022027,6]
[366380584,1750223444083,-460.0,0.00022027,6]
[366380586,1750223444092,-460.0,0.00022027,6]
[366380588,1750223444102,-460.0,0.00022027,6]
[366380590,1750223444113,-472.93,0.00022027,6]
[366380592,1750223444122,-460.0,0.00022027,6]
[366380594,1750223444132,-1253.95,0.00022027,6]
[366380596,1750223444142,-460.0,0.00022027,6]
[366380598,1750223444152,-460.0,0.00022027,6]
[366380600,1750223444162,-460.0,0.00022027,6]
[366380602,1750223444172,-460.0,0.00022027,6]
[366380604,1750223444182,-460.0,0.00022027,6]
[366380606,1750223444192,-460.0,0.00022027,6]
[366380608,1750223444201,-460.0,0.00022027,6]
[366380610,1750223444212,-642.24,0.00022027,6]
[366380612,1750223444222,-460.0,0.00022027,6]
[366380614,1750223444232,-460.0,0.00022027,6]
[366380616,1750223444242,-460.0,0.00022027,6]
[366380618,1750223444252,-460.0,0.00022027,6]
[366380620,1750223444262,-192.35957835,0.00022027,6]
[366380622,1750223444271,-460.0,0.00022027,6]
[366380624,1750223444281,-460.0,0.00022027,6]
[366380626,1750223444291,-460.0,0.00022027,6]
[366380628,1750223444301,-460.0,0.00022027,6]
[366380630,1750223444311,-460.0,0.00022027,6]
[366380632,1750223444322,-460.0,0.00022027,6]
[366380634,1750223444332,-460.0,0.00022027,6]
[366380636,1750223444341,-460.0,0.00022027,6]
[366380638,1750223444351,-460.0,0.00022027,6]
[366380640,1750223444360,-460.0,0.00022027,6]
[366380642,1750223444370,-460.0,0.00022027,6]
[366380644,1750223444379,-460.0,0.00022027,6]
[366380646,1750223444389,-420.70405248,0.00022027,6]
[366380648,1750223444398,-455.23926233,0.00022027,6]
[366380650,1750223444407,-460.0,0.00022027,6]
[366380652,1750223444417,-460.0,0.00022027,6]
[366380654,1750223444427,-460.0,0.00022027,6]
[366380657,1750223444439,-460.0,0.00022027,6]
[366380659,1750223444450,-460.0,0.00022027,6]
[366380662,1750223444468,-460.0,0.00022027,6]
[366380664,1750223444477,-576.1287455,0.00022027,6]
[366380666,1750223444488,-821.1,0.00022027,6]
[366380668,1750223444497,-151.55817975,0.00022027,6]
[366380670,1750223444507,-460.0,0.00022027,6]
[366380672,1750223444518,-460.0,0.00022027,6]
[366380674,1750223444528,-460.0,0.00022027,6]
[366380676,1750223444537,-460.0,0.00022027,6]
[366380678,1750223444547,-460.0,0.00022027,6]
[366380680,1750223444558,-460.0,0.00022027,6]
[366380682,1750223444567,-460.0,0.00022027,6]
[366380684,1750223444577,-496.14,0.00022027,6]
[366380686,1750223444586,-460.0,0.00022027,6]
[366380688,1750223444596,-460.0,0.00022027,6]
[366380690,1750223444606,-460.0,0.00022027,6]
[366380692,1750223444616,-413.06820166,0.00022027,6]
[366380694,1750223444626,-460.0,0.00022027,6]
[366380696,1750223444635,-285.82201057,0.00022027,6]
[366380698,1750223444644,-506.31320311,0.00022027,6]
[366380700,1750223444654,-656.42,0.00022027,6]
[366380702,1750223444663,-460.0,0.00022027,6]
[366380704,1750223444672,-460.0,0.00022027,6]
[366380706,1750223444682,-460.0,0.00022027,6]
[366380708,1750223444692,-460.0,0.00022027,6]
[366380710,1750223444704,-460.0,0.00022027,6]
[366380712,1750223444713,-460.0,0.00022027,6]
[366380714,1750223444723,-460.0,0.00022027,6]
[366380716,1750223444732,-460.0,0.00022027,6]
[366380718,1750223444742,-410.0,0.00022027,6]
[366380720,1750223444751,-430.0,0.00022027,6]
[366380722,1750223444761,-460.0,0.00022027,6]
[366380724,1750223444770,-460.0,0.00022027,6]
[366380726,1750223444781,-605.67,0.00022027,6]
[366380728,1750223444790,-460.0,0.00022027,6]
[366380730,1750223444799,-3917.8,0.00022027,6]
[366380732,1750223444809,-460.0,0.00022027,6]
[366380734,1750223444818,-460.0,0.00022027,6]
[366380736,1750223444828,-460.0,0.00022027,6]
[366380738,1750223444837,-1046.18,0.00022027,6]
[366380739,1750223444846,-460.0,0.00022027,6]
[366380741,1750223444855,-460.0,0.00022027,6]
[366380743,1750223444865,-430.0,0.00022027,6]
[366380745,1750223444874,-335.72074453,0.00022027,6]
[366380747,1750223444883,-460.0,0.00022027,6]
[366380749,1750223444893,-507.25,0.00022027,6]
[366380752,1750223444904,-559.21,0.00022027,6]
[366380754,1750223444913,-515.7,0.00022027,6]
[366380755,1750223444923,-460.0,0.00022027,6]
[366380758,1750223444933,-460.0,0.00022027,6]
[366380759,1750223444942,-460.0,0.00022027,6]
[366380761,1750223444951,-1238.71,0.00022027,6]
[366380763,1750223444961,-460.0,0.00022027,6]
[366380765,1750223444971,-383.29933048,0.00022027,6]
[366380767,1750223444980,-460.0,0.00022027,6]
[366380770,1750223444990,-168.0,0.00022098,2]
[366380772,1750223445000,-3216.95,0.000221,7]
[366380774,1750223445010,-460.0,0.00022135,6]
[366380775,1750223445019,-460.0,0.00022135,6]
[366380778,1750223445029,-414.94041839,0.00022135,6]
[366380779,1750223445038,-446.80719859,0.00022135,6]
[366380781,1750223445048,-460.0,0.00022135,6]
[366380783,1750223445059,-460.0,0.00022135,6]
[366380785,1750223445068,-444.06390929,0.00022135,6]
[366380787,1750223445078,-460.0,0.00022135,6]
[366380789,1750223445088,-460.0,0.00022135,6]
[366380791,1750223445097,-460.0,0.00022135,6]
[366380793,1750223445107,-460.0,0.00022135,6]
[366380795,1750223445116,-460.0,0.00022135,6]
[366380797,1750223445127,-460.0,0.00022135,6]
[366380799,1750223445137,-460.0,0.00022135,6]
[366380801,1750223445146,-425.9630006,0.00022135,6]
[366380803,1750223445155,-460.0,0.00022136,6]
[366380805,1750223445165,-496.72909165,0.00022136,6]
[366380807,1750223445175,-460.0,0.00022136,6]
[366380809,1750223445184,-460.0,0.00022136,6]
[366380811,1750223445194,-460.0,0.00022136,6]
[366380813,1750223445203,-460.0,0.00022136,6]
[366380815,1750223445213,-400.0,0.00022136,6]
[366380817,1750223445223,-460.0,0.00022136,6]
[366380819,1750223445232,-391.43360347,0.00022136,6]
[366380821,1750223445242,-582.43938122,0.00022136,6]
[366380823,1750223445252,-460.0,0.00022136,6]
[366380825,1750223445262,-460.0,0.00022136,6]
[366380827,1750223445273,-460.0,0.00022136,6]
[366380829,1750223445283,-460.0,0.00022136,6]
[366380831,1750223445293,-460.0,0.00022136,6]
[366380833,1750223445303,-460.0,0.00022136,6]
[366380835,1750223445315,-460.0,0.00022136,6]
[366380837,1750223445324,-177.57689812,0.00022136,6]
[366380839,1750223445335,-292.53,0.00022136,2]
[366380841,1750223445345,-460.0,0.00022136,6]
[366380843,1750223445356,-460.0,0.00022136,6]
[366380845,1750223445366,-460.0,0.00022136,6]
[366380847,1750223445376,-460.0,0.00022136,6]
[366380849,1750223445387,-404.98300478,0.00022136,6]
[366380851,1750223445397,-376.35981694,0.00022136,6]
[366380853,1750223445408,-460.0,0.00022136,6]
[366380855,1750223445418,-460.0,0.00022136,6]
[366380857,1750223445428,-510.0,0.00022136,6]
[366380859,1750223445438,-440.0,0.00022136,6]
[366380861,1750223445448,-460.0,0.00022136,6]
[366380863,1750223445459,-232.91845371,0.00022136,6]
[366380865,1750223445468,-460.0,0.00022136,6]
[366380867,1750223445479,-460.0,0.00022136,6]
[366380869,1750223445489,-460.0,0.00022136,6]
[366380871,1750223445500,-387.49682067,0.00022136,6]
[366380873,1750223445510,-460.0,0.00022136,6]
[366380875,1750223445521,-392.53265355,0.00022136,6]
[366380877,1750223445531,-326.27562142,0.00022136,6]
[366380879,1750223445542,-350.0,0.00022136,6]
[366380881,1750223445552,-400.0,0.00022136,6]
[366380883,1750223445564,-460.0,0.00022136,6]
[366380885,1750223445574,-460.0,0.00022136,6]
[366380887,1750223445585,-410.0,0.00022136,6]
[366380889,1750223445595,-460.0,0.00022136,6]
[366380891,1750223445605,-460.0,0.00022136,6]
[366380893,1750223445615,-460.0,0.00022136,6]
[366380895,1750223445626,-440.0,0.00022136,6]
[366380897,1750223445636,-460.0,0.00022136,6]
[366380899,1750223445646,-460.0,0.00022136,6]
[366380901,1750223445656,-460.0,0.00022136,6]
[366380903,1750223445666,-277.9476566,0.00022136,6]
[366380905,1750223445676,-373.22740252,0.00022136,6]
[366380907,1750223445685,-441.6063874,0.00022136,6]
[366380909,1750223445695,-460.0,0.00022136,6]
[366380911,1750223445709,-390.0,0.00022136,6]
[366380913,1750223445718,-460.0,0.00022136,6]
[366380915,1750223445728,-168.13782168,0.00022136,6]
[366380917,1750223445738,-441.41023237,0.00022136,6]
[366380919,1750223445749,-460.0,0.00022136,6]
[366380921,1750223445759,-460.0,0.00022136,6]
[366380923,1750223445768,-460.0,0.00022136,6]
[366380925,1750223445779,-460.0,0.00022136,6]
[366380927,1750223445789,-460.0,0.00022136,6]
[366380929,1750223445799,-460.0,0.00022136,6]
[366380932,1750223445819,-477.37194377,0.00022136,6]
[366380934,1750223445831,-460.0,0.00022136,6]
[366380936,1750223445841,-468.91610523,0.00022136,6]
[366380938,1750223445851,-460.0,0.00022136,6]
[366380940,1750223445861,-460.0,0.00022136,6]
[366380942,1750223445871,-460.0,0.00022136,6]
[366380944,1750223445881,-460.0,0.00022136,6]
[366380946,1750223445891,-460.0,0.00022136,6]
[366380948,1750223445900,-460.0,0.00022136,6]
[366380950,1750223445910,-534.36761753,0.00022136,6]
[366380952,1750223445919,-460.0,0.00022136,6]
[366380954,1750223445929,-460.0,0.00022136,6]
[366380956,1750223445939,-198.15148337,0.00022136,6]
[366380958,1750223445948,-426.31360367,0.00022136,6]
[366380960,1750223445958,-460.0,0.00022136,6]
[366380962,1750223445968,-460.0,0.00022136,6]
[366380964,1750223445978,-460.0,0.00022136,6]
[366380966,1750223445987,-459.87659794,0.00022136,6]
[366380968,1750223445998,-460.0,0.00022136,6]
[366380970,1750223446007,-825.78,0.00022136,6]
[366380972,1750223446017,-460.0,0.00022136,6]
[366380974,1750223446027,-449.28454572,0.00022136,6]
[366380976,1750223446036,-152.012568,0.00022136,7]
[366380978,1750223446046,-279.93730541,0.00022136,6]
[366380980,1750223446056,-460.0,0.00022136,6]
[366380982,1750223446066,-857.72,0.00022136,6]
[366380984,1750223446076,-537.10172488,0.00022136,6]
[366380986,1750223446085,-460.0,0.00022136,6]
[366380988,1750223446095,-460.0,0.00022136,6]
[366380990,1750223446105,-350.0,0.00022136,6]
[366380992,1750223446116,-1291.82,0.00022136,6]
[366380994,1750223446126,-460.0,0.00022136,6]
[366380996,1750223446136,-430.0,0.00022136,6]
[366380998,1750223446145,-460.0,0.00022136,6]
[366381015,1750223446292,-497.80372557,0.00022136,6]
[366381017,1750223446302,-460.0,0.00022136,6]
[366381019,1750223446313,-460.0,0.00022136,6]
[366381021,1750223446323,-460.0,0.00022136,6]
[366381023,1750223446333,-373.48795332,0.00022136,6]
[366381025,1750223446343,-460.0,0.00022136,6]
[366381027,1750223446354,-151.0,0.00022136,7]
[366381029,1750223446363,-460.0,0.00022136,6]
[366381031,1750223446373,-460.0,0.00022136,6]
[366381033,1750223446383,-151.0,0.00022136,7]
[366381035,1750223446392,-436.20248225,0.00022136,6]
[366381037,1750223446402,-472.93,0.00022136,6]
[366381039,1750223446411,-154.671531,0.00022136,7]
[366381041,1750223446421,-1253.95,0.00022136,6]
[366381043,1750223446431,-460.0,0.00022136,6]
[366381045,1750223446440,-460.0,0.00022136,6]
[366381047,1750223446450,-460.0,0.00022136,6]
[366381049,1750223446459,-460.0,0.00022136,6]
[366381051,1750223446469,-591.30607031,0.00022136,6]
[366381053,1750223446478,-460.0,0.00022136,6]
[366381055,1750223446487,-233.119637,0.00022136,7]
[366381057,1750223446497,-460.0,0.00022136,6]
[366381059,1750223446506,-460.0,0.00022136,6]
[366381061,1750223446515,-233.119637,0.00022136,7]
[366381063,1750223446525,-642.24,0.00022136,6]
[366381065,1750223446535,-460.0,0.00022136,6]
[366381067,1750223446544,-460.0,0.00022136,6]
[366381069,1750223446555,-460.0,0.00022136,6]
[366381071,1750223446563,-460.0,0.00022136,6]
[366381073,1750223446573,-151.0,0.00022136,7]
[366381075,1750223446582,-400.0,0.00022136,6]
[366381077,1750223446591,-460.0,0.00022136,6]
[366381079,1750223446600,-460.0,0.00022136,6]
[366381081,1750223446610,-302.87444201,0.00022136,6]
[366381083,1750223446620,-460.0,0.00022136,6]
[366381085,1750223446629,-407.18598229,0.00022136,6]
[366381087,1750223446639,-460.0,0.00022136,6]
[366381089,1750223446648,-518.96747672,0.00022136,6]
[366381091,1750223446658,-460.0,0.00022136,6]
[366381093,1750223446667,-240.0,0.00022136,6]
[366381095,1750223446676,-151.0,0.00022136,7]
[366381097,1750223446685,-460.0,0.00022136,6]
[366381099,1750223446696,-460.0,0.00022136,6]
[366381101,1750223446708,-460.0,0.00022136,6]
[366381103,1750223446718,-151.0,0.00022136,7]
[366381105,1750223446727,-152.795681,0.00022136,7]
[366381107,1750223446736,-460.0,0.00022136,6]
[366381109,1750223446747,-460.0,0.00022136,6]
[366381111,1750223446757,-460.0,0.00022136,6]
[366381113,1750223446766,-460.0,0.00022136,6]
[366381114,1750223446775,-460.0,0.00022136,6]
[366381117,1750223446785,-821.1,0.00022136,6]
[366381118,1750223446794,-461.74398605,0.00022136,6]
[366381120,1750223446803,-460.0,0.00022136,6]
[366381122,1750223446813,-460.0,0.00022136,6]
[366381124,1750223446823,-460.0,0.00022136,6]
[366381126,1750223446833,-460.0,0.00022136,6]
[366381128,1750223446842,-460.0,0.00022136,6]
[366381130,1750223446852,-151.0,0.00022136,7]
[366381132,1750223446861,-460.0,0.00022136,6]
[366381134,1750223446871,-496.14,0.00022136,6]
[366381136,1750223446881,-460.0,0.00022136,6]
[366381138,1750223446891,-187.7456251,0.00022136,6]
[366381140,1750223446901,-460.0,0.00022136,6]
[366381142,1750223446911,-460.0,0.00022136,6]
[366381144,1750223446922,-656.42,0.00022136,6]
[366381146,1750223446931,-460.0,0.00022136,6]
[366381148,1750223446941,-218.0102704,0.00022136,6]
[366381150,1750223446951,-460.0,0.00022136,6]
[366381152,1750223446960,-460.0,0.00022136,6]
[366381154,1750223446970,-460.0,0.00022136,6]
[366381156,1750223446979,-211.762869,0.00022136,7]
[366381158,1750223446989,-460.0,0.00022136,6]
[366381160,1750223446999,-211.762869,0.00022136,7]
[366381162,1750223447008,-159.63842136,0.00022136,6]
[366381164,1750223447018,-460.0,0.00022136,6]
[366381167,1750223447028,-151.0,0.00022136,7]
[366381169,1750223447037,-201.066712,0.00022136,7]
[366381171,1750223447048,-460.0,0.00022136,6]
[366381173,1750223447058,-460.0,0.00022136,6]
[366381175,1750223447067,-605.67,0.00022136,6]
[366381177,1750223447076,-460.0,0.00022136,6]
[366381178,1750223447085,-3917.8,0.00022136,6]
[366381180,1750223447095,-430.0,0.00022136,6]
[366381182,1750223447105,-460.0,0.00022136,6]
[366381184,1750223447115,-460.0,0.00022136,6]
[366381186,1750223447124,-1046.18,0.00022136,6]
[366381188,1750223447134,-460.0,0.00022136,6]
[366381190,1750223447143,-460.0,0.00022136,6]
[366381192,1750223447152,-460.0,0.00022136,6]
[366381194,1750223447161,-507.25,0.00022136,6]
[366381196,1750223447171,-559.21,0.00022136,6]
[366381198,1750223447181,-515.7,0.00022136,6]
[366381200,1750223447191,-460.0,0.00022136,6]
[366381202,1750223447201,-460.0,0.00022136,6]
[366381204,1750223447211,-151.0,0.00022136,7]
[366381206,1750223447222,-460.0,0.00022136,6]
[366381209,1750223447232,-1238.71,0.00022136,6]
[366381210,1750223447241,-158.049088,0.00022136,7]
[366381212,1750223447251,-158.049088,0.00022136,7]
[366381214,1750223447261,-366.53804788,0.00022136,6]
[366381216,1750223447271,-460.0,0.00022136,6]
[366381218,1750223447280,-503.80708916,0.00022173,2]
[366381220,1750223447289,-502.4061861,0.00022173,2]
[366381222,1750223447299,-600.0,0.00022173,2]
[366381224,1750223447309,-500.0,0.00022173,2]
[366381226,1750223447318,-500.99072211,0.00022173,2]
[366381228,1750223447328,-500.4929883,0.00022173,2]
[366381229,1750223447338,-500.0,0.00022173,2]
[366381230,1750223447347,-546.57071362,0.00022173,2]
[366381231,1750223447357,-1592.01320081,0.00022176,6]
[366381232,1750223447367,-792.85,0.000222,7]
[366381233,1750223447376,-88857.78,0.000222,7]
[366381234,1750223447386,-158.907267,0.000222,7]
[366381235,1750223447395,-151.0,0.000222,7]
[366381236,1750223447405,-151.0,0.000222,7]
[366381237,1750223447415,-152.06794,0.000222,7]
[366381238,1750223447424,-151.684097,0.000222,7]
[366381239,1750223447434,-151.0,0.000222,7]
[366381240,1750223447443,-12542.39314967,0.000222,7]
[366381241,1750223447452,-151.0,0.000222,7]
[366381242,1750223447461,-151.0,0.000222,7]
[366381243,1750223447471,-166.646822,0.000222,7]
[366381244,1750223447480,-151.0,0.000222,7]
[366381245,1750223447489,-211.762869,0.000222,7]
[366381246,1750223447498,-211.762869,0.000222,7]
[366381247,1750223447508,-151.0,0.000222,7]
[366381248,1750223447517,-158.049088,0.000222,7]
[366381249,1750223447527,-158.049088,0.000222,7]
[366381250,1750223447537,-404.67375038,0.00022244,6]
[366381251,1750223447546,-460.0,0.00022244,6]
[366381252,1750223447555,-460.0,0.00022244,6]
[366381253,1750223447565,-460.0,0.00022244,6]
[366381255,1750223447575,-460.0,0.00022244,6]
[366381257,1750223447583,-427.88153876,0.00022244,6]
[366381259,1750223447593,-460.0,0.00022244,6]
[366381261,1750223447602,-460.0,0.00022244,6]
[366381263,1750223447612,-460.0,0.00022244,6]
[366381265,1750223447621,-423.75112413,0.00022244,6]
[366381267,1750223447630,-460.0,0.00022244,6]
[366381269,1750223447639,-390.0,0.00022246,6]
[366381271,1750223447648,-547.3,0.00022246,6]
[366381273,1750223447657,-460.0,0.00022246,6]
[366381275,1750223447667,-460.0,0.00022246,6]
[366381277,1750223447676,-460.0,0.00022246,6]
[366381279,1750223447685,-460.0,0.00022246,6]
[366381281,1750223447695,-205.61300003,0.00022246,6]
[366381283,1750223447707,-460.0,0.00022246,6]
[366381285,1750223447716,-380.0,0.00022246,6]
[366381287,1750223447725,-152.52403429,0.00022246,6]
[366381289,1750223447734,-460.0,0.00022246,6]
[366381291,1750223447744,-460.0,0.00022246,6]
[366381293,1750223447753,-460.0,0.00022246,6]
[366381295,1750223447762,-460.0,0.00022246,6]
[366381296,1750223447771,-460.0,0.00022246,6]
[366381298,1750223447781,-460.0,0.00022246,6]
[366381300,1750223447790,-460.0,0.00022246,6]
[366381302,1750223447801,-460.0,0.00022246,6]
[366381304,1750223447811,-460.0,0.00022246,6]
[366381306,1750223447820,-460.0,0.00022246,6]
[366381308,1750223447830,-225.9898967,0.00022246,6]
[366381310,1750223447841,-340.0,0.00022246,6]
[366381312,1750223447851,-460.0,0.00022246,6]
[366381314,1750223447861,-460.0,0.00022246,6]
[366381316,1750223447871,-460.0,0.00022246,6]
[366381318,1750223447881,-460.0,0.00022246,6]
[366381320,1750223447890,-460.0,0.00022246,6]
[366381322,1750223447899,-446.46043147,0.00022246,6]
[366381324,1750223447909,-151.0,0.00022246,7]
[366381326,1750223447918,-151.0,0.00022246,7]
[366381328,1750223447927,-460.0,0.00022246,6]
[366381330,1750223447936,-343.73665465,0.00022246,6]
[366381332,1750223447945,-238.752,0.00022246,7]
[366381334,1750223447954,-233.49500189,0.00022246,6]
[366381336,1750223447963,-572.38974434,0.00022246,6]
[366381337,1750223447971,-397.39745327,0.00022246,6]
[366381340,1750223447982,-400.0,0.00022246,6]
[366381341,1750223447991,-460.0,0.00022246,6]
[366381343,1750223448001,-460.0,0.00022246,6]
[366381345,1750223448010,-151.0,0.00022246,7]
[366381347,1750223448019,-460.0,0.00022246,6]
[366381349,1750223448028,-460.0,0.00022246,6]
[366381351,1750223448038,-460.0,0.00022246,6]
[366381353,1750223448047,-348.62645855,0.00022246,6]
[366381355,1750223448057,-460.0,0.00022246,6]
[366381357,1750223448067,-460.0,0.00022246,6]
[366381359,1750223448077,-460.0,0.00022246,6]
[366381361,1750223448086,-460.0,0.00022246,6]
[366381363,1750223448096,-460.0,0.00022246,6]
[366381365,1750223448105,-460.0,0.00022246,6]
[366381367,1750223448114,-460.0,0.00022246,6]
[366381369,1750223448124,-460.0,0.00022246,6]
[366381371,1750223448134,-460.0,0.00022246,6]
[366381373,1750223448143,-825.78,0.00022246,6]
[366381375,1750223448153,-460.0,0.00022246,6]
[366381377,1750223448162,-460.0,0.00022246,6]
[366381379,1750223448171,-857.72,0.00022246,6]
[366381381,1750223448181,-460.0,0.00022246,6]
[366381383,1750223448191,-460.0,0.00022246,6]
[366381385,1750223448200,-1291.82,0.00022246,6]
[366381387,1750223448210,-460.0,0.00022246,6]
[366381389,1750223448220,-460.0,0.00022246,6]
[366381391,1750223448229,-460.0,0.00022246,6]
[366381393,1750223448238,-460.0,0.00022246,6]
[366381394,1750223448247,-460.0,0.00022246,6]
[366381396,1750223448259,-350.0,0.00022246,6]
[366381398,1750223448268,-151.0,0.00022246,7]
[366381400,1750223448278,-460.0,0.00022246,6]
[366381402,1750223448288,-460.0,0.00022246,6]
[366381404,1750223448297,-151.0,0.00022246,7]
[366381406,1750223448308,-472.93,0.00022246,6]
[366381408,1750223448317,-420.0,0.00022246,6]
[366381410,1750223448327,-1253.95,0.00022246,6]
[366381412,1750223448338,-460.0,0.00022246,6]
[366381414,1750223448348,-460.0,0.00022246,6]
[366381416,1750223448357,-279.69831835,0.00022246,6]
[366381418,1750223448367,-460.0,0.00022246,6]
[366381421,1750223448377,-233.119637,0.00022246,7]
[366381422,1750223448387,-460.0,0.00022246,6]
[366381424,1750223448396,-460.0,0.00022246,6]
[366381427,1750223448407,-233.119637,0.00022246,7]
[366381429,1750223448416,-642.24,0.00022246,6]
[366381431,1750223448425,-460.0,0.00022246,6]
[366381433,1750223448435,-460.0,0.00022246,6]
[366381444,1750223448535,-350.0,0.00022246,6]
[366381446,1750223448544,-460.0,0.00022246,6]
[366381448,1750223448554,-555.77027913,0.00022246,6]
[366381450,1750223448564,-460.0,0.00022246,6]
[366381452,1750223448574,-460.0,0.00022246,6]
[366381454,1750223448584,-460.0,0.00022246,6]
[366381456,1750223448594,-382.86590004,0.00022246,6]
[366381458,1750223448604,-460.0,0.00022246,6]
[366381460,1750223448614,-460.0,0.00022246,6]
[366381462,1750223448624,-460.0,0.00022246,6]
[366381464,1750223448634,-460.0,0.00022246,6]
[366381466,1750223448644,-460.0,0.00022246,6]
[366381468,1750223448653,-460.0,0.00022246,6]
[366381470,1750223448663,-460.0,0.00022246,6]
[366381472,1750223448672,-460.0,0.00022246,6]
[366381474,1750223448681,-821.1,0.00022246,6]
[366381476,1750223448692,-460.0,0.00022246,6]
[366381478,1750223448705,-460.0,0.00022246,6]
[366381480,1750223448715,-460.0,0.00022246,6]
[366381482,1750223448724,-460.0,0.00022246,6]
[366381484,1750223448734,-460.0,0.00022246,6]
[366381486,1750223448743,-312.82220957,0.00022246,6]
[366381488,1750223448755,-496.14,0.00022246,6]
[366381490,1750223448765,-460.0,0.00022246,6]
[366381492,1750223448774,-602.04536179,0.00022246,6]
[366381493,1750223448785,-460.0,0.00022246,6]
[366381495,1750223448796,-656.42,0.00022246,6]
[366381497,1750223448806,-460.0,0.00022246,6]
[366381499,1750223448816,-460.0,0.00022246,6]
[366381501,1750223448826,-460.0,0.00022246,6]
[366381503,1750223448835,-460.0,0.00022246,6]
[366381505,1750223448845,-460.0,0.00022246,6]
[366381507,1750223448855,-460.0,0.00022246,6]
[366381509,1750223448865,-460.0,0.00022246,6]
[366381511,1750223448875,-460.0,0.00022246,6]